Cogmind - Beta 14 --- EXPLORER MODE // 2024.11.05 @ 13:05:24 Player: gorb Result: Core destroyed Performance ------------- Evolutions (0) 0 Regions Visited (2) 400 Robots Destroyed (9) 45 Value Destroyed (205) 205 Prototype IDs (2) 40 Alien Tech Used (0) 0 Bonus (0) 0 TOTAL SCORE: 690 Bonus ------- None Cogmind --------- Core Integrity 0/250 Matter 267/300 Energy 39/100 System Corruption 0% Temperature Critical (629) Movement Walking (190) Ox1 Location -10/Mines Parts ------- > --- POWER (1) -------- (None) > --- PROPULSION (3) --- Aluminum Leg Aluminum Leg > --- UTILITY (2) ------ Large Storage Unit > --- WEAPON (2) ------- Spread Laser Spread Laser > --- INVENTORY (15) --- Ion Engine Light Ion Engine Light Ion Engine Huge Storage Unit Medium Matter Pod (39) Visual Processing Unit Terrain Scanner Targeting Computer Propulsion Shielding Beam Cannon Light Assault Rifle Light Assault Rifle Mining Laser Peak State ------------ > --- POWER ------------ Ion Engine > --- PROPULSION ------- Aluminum Leg Aluminum Leg > --- UTILITY ---------- Large Storage Unit Light Armor Plating > --- WEAPON ----------- Spread Laser Spread Laser > --- INVENTORY -------- Ion Engine Light Ion Engine Light Ion Engine Aluminum Leg Aluminum Leg Huge Storage Unit Medium Matter Pod Visual Processing Unit Terrain Scanner Targeting Computer Propulsion Shielding Beam Cannon Light Assault Rifle Light Assault Rifle Mining Laser [Rating: 10] Favorites ----------- Power Ion Engine Engine Ion Engine Propulsion Aluminum Leg Leg Aluminum Leg Utility Terrain Scanner Device Terrain Scanner Storage Huge Storage Unit Protection Light Armor Plating Weapon Light Assault Rifle Energy Gun Spread Laser Energy Cannon Beam Cannon Ballistic Gun Light Assault Rifle Build | -11 -10 -10 ------- Run | Yrd Mat Min Slots Evolved 1 | . 1 . Power . | . . . Propulsion 1 | . 1 . Utility . | . . . Weapon . | . . . Parts Attached 18 | 2 9 7 Power 1 | . 1 . Engine 1 | . 1 . Core . | . . . Reactor . | . . . Propulsion 5 | . 3 2 Treads . | . . . Leg 5 | . 3 2 Wheel . | . . . Hover . | . . . Flight . | . . . Utility 7 | 2 2 3 Device 1 | 1 . . Storage 5 | 1 2 2 Processor . | . . . Hackware . | . . . Protection 1 | . . 1 Artifact . | . . . Weapon 5 | . 3 2 Energy Gun 2 | . . 2 Energy Cannon 1 | . 1 . Ballistic Gun 2 | . 2 . Ballistic Cannon . | . . . Launcher . | . . . Special Weapon . | . . . Impact Weapon . | . . . Slashing Weapon . | . . . Piercing Weapon . | . . . Special Melee Weapon . | . . . Unidentified Prototypes . | . . . Parts Lost 5 | . . 5 Power 1 | . . 1 Propulsion 3 | . . 3 Utility 1 | . . 1 Weapon . | . . . Highest Loss Streak 5 | . . 5 To Critical Strikes . | . . . Average Slot Usage (%) 90 | . 91 77 Engine 11 | . 12 7 Leg 29 | . 29 24 Device 11 | . 12 2 Storage 12 | . 12 12 Energy Gun 1 | . . 15 Energy Cannon 5 | . 5 4 Ballistic Gun 18 | . 19 4 Peak Build Rating 10 | 3 9 10 Average Rating 6 | 1 7 8 On Entrance 4 | . 3 9 Naked Turns . | . . . Heaviest Build 90 | 11 90 32 Greatest Support 30 | 3 30 30 Greatest Overweight (x) 4 | 3 4 1 Average Overweight (x) 1 | 2 1 . Largest Inventory Capacity 25 | 10 25 25 Average Capacity 18 | 9 19 15 Most Carried 15 | 10 15 15 Average Carried 8 | 7 7 14 Final Capacity 15 | 10 15 15 Final Carried 15 | 10 15 13 Class Distribution -------------------- 100% | Hacker-Mutant Dominant Class ---------------- Hacker-Mutant | -10/Materials Hacker-Mutant | -10/Mines Resources | -11 -10 -10 ----------- Run | Yrd Mat Min Matter Collected 399 | 150 234 15 Remotely . | . . . Salvage Created 338 | . 256 82 Parts 18 | . 18 . Haulers Intercepted . | . . . Recyclers Shooed 1 | . 1 . Parts Field Recycled . | . . . Retrieved Matter . | . . . Parts Self-Destructed . | . . . Prevented . | . . . Kills | -11 -10 -10 ------- Run | Yrd Mat Min Combat Hostiles Destroyed 16 | . 8 8 Guns 11 | . 4 7 Cannons 4 | . 3 1 Classes Destroyed 4 | . 3 1 Watcher 1 | . 1 . Swarmer 4 | . 4 . Grunt 4 | . 4 . Assembled 8 | . . 8 Best Kill Streak 8 | . 2 8 Combat Bots Only 8 | . 2 8 Max Kills in Single Turn 2 | . 1 2 Gunslinging 1 | . . 1 Exploded . | . . . Melee . | . . . Uniques/NPCs Destroyed . | . . . Combat | -11 -10 -10 -------- Run | Yrd Mat Min Hostile Shots Fired 118 | . 45 73 Missed 24 | . 13 11 Damage Taken 885 | . 223 662 Core 280 | . 44 236 Absorbed by Shields . | . . . Ignored by Resistances 480 | . 142 338 Core Remaining (%) 100 | 100 . . Volleys Fired 32 | . 23 9 Largest 2 | . 2 2 Hottest 130 | . 80 130 Shots Fired 63 | . 46 17 Gun 50 | . 35 15 Cannon 13 | . 11 2 Launcher . | . . . Special . | . . . Kinetic 38 | . 35 3 Thermal 25 | . 11 14 Explosive . | . . . Electromagnetic . | . . . Robot Hit Streak 30 | . 30 10 Robot Miss Streak 4 | . 1 4 Penetration Max . | . . . Secondary Targets 3 | . . 3 Max Gunslinging Chain 1 | . . 1 Shots Hit Robots 53 | . 37 16 Core Hits 55 | . 16 39 Critical Kills 1 | . 1 . Critical Parts Destroyed . | . . . Critical Strikes 1 | . 1 . Meltdown 1 | . 1 . Melee Attacks . | . . . Impact . | . . . Slashing . | . . . Piercing . | . . . Sneak Attacks . | . . . Combat Hostiles . | . . . Follow-up Attacks . | . . . Damage Inflicted 685 | . 412 273 Guns 477 | . 238 239 Cannons 208 | . 174 34 Explosions . | . . . Melee . | . . . Ramming . | . . . Kinetic 260 | . 238 22 Thermal 425 | . 174 251 Explosive . | . . . Electromagnetic . | . . . Impact . | . . . Slashing . | . . . Piercing . | . . . Highest Corruption . | . . . Average Corruption . | . . . Corruption Purged . | . . . Corruption Blocked . | . . . Overload Shots . | . . . Overflow Damage 4 | . 4 . Projectiles 4 | . 4 . Explosions . | . . . Melee . | . . . Knockbacks . | . . . Impact . | . . . Kinetic . | . . . Secondary . | . . . Self-Inflicted Damage . | . . . Shots . | . . . Rammed . | . . . Targets Rammed . | . . . Kicked . | . . . Crushed . | . . . Highest Temperature 679 | . 171 679 Average Temperature 137 | . 47 291 Received Heat Transfer 599 | . 159 440 Effects 9 | . . 9 Shutdowns 1 | . . 1 Energy Bleed 1 | . . 1 Interference 2 | . . 2 Short Circuit 1 | . . 1 Damage (minor) 1 | . . 1 Damage (core) 3 | . . 3 Siege Activations . | . . . Robots Corrupted . | . . . Combat Hostiles . | . . . Parts Fried . | . . . Impact Corruptions . | . . . Robots Melted 1 | . 1 . Combat Hostiles 1 | . 1 . Parts Melted . | . . . Heat Transferred 724 | . 370 354 Parts Sabotaged . | . . . Parts Stolen . | . . . Parts Stripped . | . . . Power Chain Reactions . | . . . Alert | -11 -10 -10 ------- Run | Yrd Mat Min Peak Influence 107 | . 107 27 Initial 27 | . . 27 Average 40 | . 49 7 Maximum Alert Level . | . . . Low Security (%) 100 | 100 100 100 Level 1 . | . . . Level 2 . | . . . Level 3 . | . . . Level 4 . | . . . Level 5 . | . . . High Security . | . . . Max Security . | . . . Squads Dispatched 1 | . 1 . Investigation 1 | . 1 . Extermination . | . . . Reinforcement . | . . . Assault . | . . . Garrison . | . . . Intercept . | . . . Searches Triggered . | . . . Construction Impeded . | . . . Haulers Reinforced . | . . . Active Scanning Responses . | . . . Cargo Convoy Interrupts . | . . . Stealth | -11 -10 -10 --------- Run | Yrd Mat Min Distress Signals 1 | . 1 . Communications Jammed . | . . . Distress Signals . | . . . Times Spotted 29 | . 9 20 Peak Tracking Total 20 | . 3 20 Tactical Retreats . | . . . Traps | -11 -10 -10 ------- Run | Yrd Mat Min Traps Triggered . | . . . Indirectly . | . . . Trap Hack Attempts . | . . . Triggered . | . . . Disarmed 6 | . 6 . Reprogrammed . | . . . Reused . | . . . Traps Extracted . | . . . Installed . | . . . Triggered . | . . . Machines | -11 -10 -10 ---------- Run | Yrd Mat Min Machines Disabled . | . . . Max in Single Turn . | . . . Machines Repaired . | . . . Machines Dismantled . | . . . Machines Sabotaged . | . . . Overloaded Fab Kills . | . . . Hacking | -11 -10 -10 --------- Run | Yrd Mat Min Machines Accessed 2 | . 2 . Terminals 2 | . 2 . Fabricators . | . . . Repair Stations . | . . . Recycling Units . | . . . Scanalyzers . | . . . Garrison Access . | . . . Total Hacks 10 | . 10 . Successful 5 | . 5 . Failed 5 | . 5 . Catastrophic . | . . . Database Lockouts . | . . . Manual . | . . . Terminals 10 | . 10 . Fabricators . | . . . Repair Stations . | . . . Recycling Units . | . . . Scanalyzers . | . . . Garrison Access . | . . . Terminal Hacks 5 | . 5 . Prototype ID Bank 1 | . 1 . Locate Traps 1 | . 1 . Disarm Traps 1 | . 1 . Transport Status 1 | . 1 . Recall Investigation 1 | . 1 . Fabricator Hacks . | . . . Repair Station Hacks . | . . . Recycling Unit Hacks . | . . . Scanalyzer . | . . . Garrison Access Hacks . | . . . Unauthorized Hacks . | . . . Terminals . | . . . Fabricators . | . . . Repair Stations . | . . . Recycling Units . | . . . Scanalyzers . | . . . Garrison Access . | . . . Data Cores Recovered . | . . . Used . | . . . Hacking Detections 2 | . 2 . Full Trace Events 1 | . 1 . Feedback Events . | . . . Feedback Blocked . | . . . Robot Schematics Acquired . | . . . Robots Built . | . . . Authchips . | . . . Time . | . . . Total Robot Build Rating . | . . . Part Schematics Acquired . | . . . Parts Built . | . . . Authchips . | . . . Time . | . . . Total Part Build Rating . | . . . Parts Repaired . | . . . Time . | . . . Parts Recycled . | . . . Recycled Matter . | . . . Retrieved Matter . | . . . Retrieved Components . | . . . Parts Scanalyzed . | . . . Part Schematics Acquired . | . . . Parts Damaged . | . . . Bothacking | -11 -10 -10 ------------ Run | Yrd Mat Min Used RIF Installer . | . . . Robots Hacked . | . . . Non-combat . | . . . Combat . | . . . Robot Hacks Applied . | . . . Relay Couplers Released . | . . . Fabnet Peak Effective % . | . . . Robots Rewired . | . . . Allies Hacked . | . . . Hacks Repelled . | . . . Allies | -11 -10 -10 -------- Run | Yrd Mat Min Total Allies 1 | . . 1 Largest Group 1 | . . 1 Highest-Rated Group 31 | . . 31 Highest-Rated Ally 31 | . . 31 Total Orders . | . . . Ally Attacks 4 | . . 4 Total Damage 64 | . . 64 Kills 2 | . . 2 Allies Corrupted . | . . . Allies Melted . | . . . Intel | -11 -10 -10 ------- Run | Yrd Mat Min Robot Analysis Total . | . . . Derelict Logs Recovered . | . . . Drone Launches . | . . . Drone Recoveries . | . . . Exploration | -11 -10 -10 ------------- Run | Yrd Mat Min Turns Passed 690 | 92 547 51 Spaces Moved 279 | 50 220 9 Core 50 | 50 . . Treads . | . . . Legs 229 | . 220 9 Wheels . | . . . Hover . | . . . Flight . | . . . Fastest Speed 50 | 50 120 120 Average Speed 193 | 161 202 143 Slowest Speed 400 | 200 400 190 Overloaded Moves . | . . . Propulsion Burnouts . | . . . Robots Hopped . | . . . Cave-ins Triggered . | . . . Exploration Rate (%) 16 | 4 40 4 Regions Visited 2 Branch Regions 1 Pre-discovered Areas . | . . . Known Exits Taken 2 | 1 1 . Unknown Exits Taken . | . . . Scrap Searched . | . . . Spaces Dug . | . . . Terrain Destroyed . | . . . Melee . | . . . Projectile . | . . . AOE . | . . . Terrain Rammed . | . . . Walls Destroyed . | . . . Machines Disabled . | . . . Actions | -11 -10 -10 --------- Run | Yrd Mat Min Total 372 | 62 281 29 Wait 19 | . 17 2 Move 277 | 49 219 9 Hop . | . . . Pick Up 24 | 11 12 1 Fast Attach 1 | 1 . . Attach 9 | 1 6 2 Detach . | . . . Swap 8 | . 3 5 Drop 2 | . 1 1 Fire 32 | . 23 9 Melee . | . . . Ram . | . . . Kick . | . . . Crush . | . . . Escape Stasis . | . . . Rewire . | . . . Trap . | . . . Miscellaneous . | . . . Route ------- -11/Scrapyard -10/Materials (discovered 2 exits: *Mat / *Min) -10/Mines History --------- Turn | Location | Event 2 | -11/Scrapyard | Met Revision 17 12 | -11/Scrapyard | Identified exit to Materials 12 | -11/Scrapyard | Discovered exit to Materials (range 16) 93 | -11/Scrapyard | Entered Materials 93 | -10/Materials | Evolved 1 slot: Propulsion x1 317 | -10/Materials | Build established: Hacker-Mutant 368 | -10/Materials | Identified exit to Materials 368 | -10/Materials | Discovered exit to Materials (range 13) 558 | -10/Materials | Identified exit to Mines 558 | -10/Materials | Discovered exit to Mines (range 15) 640 | -10/Materials | Entered Mines 641 | -10/Mines | Assembled infested the area 643 | -10/Mines | Received a Mining Laser from a helpful Derelict 647 | -10/Mines | Assisted by a Guerilla fighting off Assembled 677 | -10/Mines | Core integrity fell below 50% 690 | -10/Mines | Core integrity fell below 20% 692 | -10/Mines | Core destroyed Last Messages --------------- Ion Engine destroyed. Broken Aluminum Leg destroyed. Aluminum Leg destroyed. as-20307 destroyed. Switching to secondary target: as-19587. Acquired 6 matter. Overheating: Core damaged (-27). as-19587 destroyed. Switching to secondary target: as-91613. as-91613 destroyed. Overheating: System interference. Spread Laser temporarily disabled. Critical hit (Burn: +80). Overheating: Energy bleed (-7). Overheating: System interference. Spread Laser temporarily disabled. Overheating: Aluminum Leg damaged (-25). Critical hit (Burn: +80). Overheating: Core damaged (-50). Overheating: Core damaged (-40). Map ----- +----------------------------------------------------+ | ???????????????????????????????????????? | | ???????????????????????????????????????? | | ???????????????????????????????????????? | | ???????????????????????????????????????? | | ???????????????????????????????????????? | | ???????????????????????????????????????? | | ???????????????????????????????????????? | | ???????????????????????????????????????? | | ???????????????????????????????????????? | | ???????????????????????????????????????? | | ???????????????????????????????????????? | | ???????????????????????????????????????? | | ???????????????????????????????????????? | | ???????????????????????????????????????? | | ???????????????????????????????????????? | | ????????????????????#??????????????????? | | ???????????????????????????????????????? | | ??????????????????#????????????????????? | | ???????????????????????????????????????? | | ???????????????????????????????????????? | | ???????????????????????????????????????? | | ???????????????????????????????????????? | | ????????????????????????????####???????? | | ????????????????????????##### ##??????? | | ????????????????????????# ## #??????? | | ?????????????#########"##@# ##?????? | | ?????????? % % %%a* [ #?????? | | ?????????? % %aaa%! #?????? | | ??????????????#####;;;a%### ##?????? | | ??????????????????## # #??#######??????? | | ???????????????????#?##????????????????? | | ???????????????????????????????????????? | | ???????????????????????????????#???????? | | | | | | | | | | | | | | | | | | | | | | | | | | | | | | | | | | | +----------------------------------------------------+ Best States ------------- Heat Dissipation 25 Energy Generation 10 Energy Capacity 250 Matter Stores 300 Matter Capacity 300 Sight Range 16 Terrain Scan Range 14 Terrain Scan Density 10 Armor Coverage 150 Resistance: KI 35 Resistance: TH 35 Resistance: EX 35 Resistance: EM 35 Resistance: I 35 Resistance: S 35 Resistance: P 35 Evasion (%) 55 Offensive Hacking 20 Item Schematics ----------------- None Robot Schematics ------------------ None Fabricated ------------ Nothing Alien Tech Used ----------------- None Achievements -------------- Hunted Challenges ------------ None Game ------ Seed EtherialCoordinationDevice Manual? 0 Play Time 00:07:18 Cumulative 13.0 hours Start 2024.11.05 @ 12:56:29 End 2024.11.05 @ 13:05:24 Sessions 1 Manual Loads 0 Difficulty Explorer Special Mode None Game No. 26 Rogue 25 Adventurer 0 Explorer 1 Win Type - Total 0 Types 0/0/0/0/0/0/0/0/0 Lore% 8 Gallery% 17 Achievement% 15 Wizard Run 0 Options --------- Layout 1 ASCII 0 Keyboard 0 Movement Mouse Keybinds 0 Fullscreen 1 Font 24/Smallcaps Map View 50x35 Zoom Use 0% Tactical HUD 0 Map Filters NONE Filters NONE Steam 1 RUN: de602ba7-d88e-45d5-97f3-418188154ce9